bitfinex/quotes_SOLUSD_20251214
["timestamp","ask_amount","ask_price","bid_price","bid_amount"]
[1765676701132,7.50926462,133.17,133.14,4.03521946]
[1765676701335,8.18926462,133.17,133.14,4.03521946]
[1765676701850,8.18926462,133.17,133.14,0.65]
[1765676702032,8.18926462,133.17,133.14,4.03521946]
[1765676704250,8.18926462,133.17,133.14,11.54606836]
[1765676704751,7.5087026,133.18,133.16,3.38521946]
[1765676705123,9.09426806,133.19,133.17,0.65]
[1765676705747,16.4075075,133.2,133.17,0.65]
[1765676705928,16.4075075,133.2,133.17,4.03521946]
[1765676708856,16.4075075,133.2,133.17,4.0339688]
[1765676711664,15.7275075,133.2,133.17,4.0339688]
[1765676711863,0.68,133.19,133.17,4.0339688]
[1765676713465,16.4075075,133.2,133.17,4.0339688]
[1765676716167,0.68,133.19,133.17,4.0339688]
[1765676716941,8.18842426,133.19,133.15,73.4539688]
[1765676717250,11.57239306,133.19,133.15,61.85]
[1765676717451,0.68,133.18,133.15,65.2339688]
[1765676718365,8.18896204,133.18,133.15,65.2339688]
[1765676718764,8.18896204,133.18,133.15,61.85]
[1765676718944,0.68,133.17,133.15,61.2]
[1765676720168,8.1892164,133.17,133.14,2.81682289]
[1765676721644,8.1892164,133.17,133.15,0.65]
[1765676725671,7.5092164,133.17,133.15,0.65]
[1765676726040,8.22888662,133.18,133.15,2.81682289]
[1765676728350,16.60233923,133.19,133.16,0.66]
[1765676728545,0.7,133.18,133.16,0.66]
[1765676729574,8.20898017,133.18,133.16,0.66]
[1765676742789,16.42898017,133.18,133.16,0.66]
[1765676743288,15.72898017,133.18,133.14,9.67766649]
[1765676743468,0.7,133.17,133.15,0.66]
[1765676743787,15.72898017,133.18,133.15,0.66]
[1765676743974,16.42898017,133.18,133.15,0.66]
[1765676746402,7.50820758,133.19,133.15,2.82668657]
[1765676746713,7.50820758,133.19,133.16,2.16668657]
[1765676746912,8.20820758,133.19,133.16,2.82668657]
[1765676747200,7.50820758,133.19,133.17,0.66]
[1765676747376,8.20820758,133.19,133.17,0.66]
[1765676749401,7.50820758,133.19,133.15,2.82668657]
[1765676749605,0.7,133.18,133.16,0.66]
[1765676750502,8.2088152,133.18,133.16,0.66]
[1765676750689,8.2088152,133.18,133.15,0.66]
[1765676750896,0.7,133.17,133.15,0.66]
[1765676751076,8.2088152,133.18,133.15,0.66]
[1765676752503,8.2088152,133.18,133.15,2.82668657]
[1765676752880,8.2088152,133.18,133.16,0.66]
[1765676757224,8.2088152,133.18,133.16,0.69]
[1765676758115,0.7,133.17,133.14,63.36668657]
[1765676758298,0.7,133.17,133.14,0.69]
[1765676758488,0.7,133.17,133.13,79.09811847]
[1765676759007,0.7,133.17,133.14,0.69]
[1765676759210,0.7,133.17,133.13,79.09811847]
[1765676759384,0.7,133.17,133.13,72.27668657]
[1765676759885,0.7,133.17,133.13,71.58668657]
[1765676760103,0.7,133.17,133.14,0.69]
[1765676761218,8.20970549,133.17,133.14,0.69]
[1765676761398,16.42970549,133.17,133.14,0.69]
[1765676761712,0.7,133.16,133.12,23.41569676]
[1765676761891,0.7,133.16,133.12,15.90377777]
[1765676762096,2.86668657,133.16,133.12,13.7370912]
[1765676762410,11.26095463,133.15,133.11,0.69]
[1765676762584,11.96095463,133.15,133.11,0.69]
[1765676762785,0.7,133.14,133.11,0.69]
[1765676765042,8.92,133.14,133.11,0.69]
[1765676765241,8.92,133.14,133.11,8.2025755]
[1765676766635,8.92,133.14,133.12,0.69]
[1765676766834,8.92,133.14,133.11,8.2025755]
[1765676767747,16.43094608,133.14,133.11,0.69]
[1765676775836,0.7,133.13,133.09,8.20367577]
[1765676776021,0.7,133.13,133.1,0.69]
[1765676777346,8.21147535,133.13,133.1,0.69]
[1765676779648,0.7,133.12,133.1,0.69]
[1765676780018,30.77889551,133.13,133.1,0.69]
[1765676780422,0.7,133.12,133.09,0.69]
[1765676781967,8.21216523,133.12,133.09,0.69]
[1765676783431,7.51216523,133.12,133.09,0.69]
[1765676783647,8.21216523,133.12,133.09,0.69]
[1765676788853,0.66,133.11,133.09,0.69]
[1765676789058,7.51216523,133.12,133.09,0.69]
[1765676789375,8.17216523,133.12,133.09,0.69]
[1765676789876,8.17216523,133.12,133.09,4.07851279]
[1765676790030,8.17216523,133.12,133.1,0.71]
[1765676791169,22.56742016,133.13,133.1,11.61125334]
[1765676791325,27.58654791,133.15,133.12,3.38851279]
[1765676791326,16.32059838,133.15,133.12,3.38851279]
[1765676791522,16.32059838,133.15,133.13,0.71]
[1765676791523,35.86535283,133.15,133.13,0.71]
[1765676792234,16.98059838,133.15,133.13,0.71]
[1765676792440,24.49333893,133.15,133.13,0.71]
[1765676797460,15.02339401,133.15,133.13,0.71]
[1765676797761,7.51065346,133.15,133.13,0.71]
[1765676798573,8.17065346,133.15,133.13,0.71]
[1765676798865,23.52681756,133.16,133.13,0.71]
[1765676799056,24.18681756,133.16,133.13,0.71]
[1765676799264,24.18681756,133.16,133.13,4.09851279]
[1765676801367,7.5094205,133.17,133.14,4.09851279]
[1765676801581,8.1694205,133.17,133.14,4.09851279]
[1765676801760,8.1694205,133.17,133.15,0.71]
[1765676802755,8.1694205,133.17,133.14,3.38851279]
[1765676802756,0.66,133.16,133.14,3.38851279]
[1765676803077,0.66,133.16,133.14,4.09851279]
[1765676804177,0.66,133.16,133.14,0.71]
[1765676805894,8.1694205,133.17,133.14,0.71]
[1765676807675,8.1694205,133.17,133.14,4.09851279]
[1765676808870,0.66,133.16,133.14,4.09851279]
[1765676809069,7.5094205,133.17,133.14,3.38851279]
[1765676809266,7.5094205,133.17,133.15,0.71]
[1765676810302,8.1694205,133.17,133.15,0.71]
[1765676811944,38.28950655,133.18,133.15,4.09851279]
[1765676812078,15.72887486,133.18,133.16,3.38851279]
[1765676812270,7.50887486,133.18,133.16,4.09851279]
[1765676812588,7.50887486,133.18,133.17,0.71]
[1765676813090,7.50887486,133.18,133.16,4.09851279]
[1765676813277,8.16887486,133.18,133.16,4.09851279]
[1765676815064,8.16887486,133.18,133.16,4.09458536]
[1765676819524,7.50887486,133.18,133.17,0.7]
[1765676821294,7.50819048,133.19,133.17,4.08458536]
[1765676821620,15.72769017,133.2,133.18,3.38458536]
[1765676821829,15.72769017,133.2,133.18,4.08458536]
[1765676821991,15.72769017,133.2,133.19,0.7]
[1765676822398,7.50769017,133.2,133.19,0.7]
[1765676822695,17.01949478,133.21,133.19,4.08458536]
[1765676822696,7.50700304,133.21,133.19,4.08458536]
[1765676823197,7.50700304,133.21,133.2,0.7]
[1765676824229,7.5063262,133.23,133.2,4.08458536]
[1765676824730,7.5063262,133.23,133.21,0.7]
[1765676825101,7.5063262,133.23,133.21,4.08458536]
[1765676825323,7.5063262,133.23,133.21,0.7]
[1765676825508,34.4924294,133.24,133.21,0.7]
[1765676825509,15.72856476,133.24,133.22,0.7]
[1765676825711,8.22,133.24,133.22,4.08458536]
[1765676825913,15.71169854,133.26,133.23,3.38458536]
[1765676826135,8.20421733,133.26,133.23,4.08458536]
[1765676826422,0.7,133.25,133.23,0.7]
[1765676827813,0.7,133.25,133.22,3.38458536]
[1765676828013,0.7,133.25,133.22,4.08458536]
[1765676828936,0.7,133.25,133.22,3.38458536]
[1765676829116,8.20470382,133.25,133.23,0.7]
[1765676830422,7.5043625,133.26,133.23,0.7]
[1765676830623,38.5658674,133.27,133.23,11.59036478]
[1765676830825,15.72368946,133.27,133.24,3.38458536]
[1765676831030,16.42368946,133.27,133.24,4.08458536]
[1765676831534,4.22674693,133.26,133.21,84.44367837]
[1765676831711,4.22674693,133.26,133.21,65.28458536]
[1765676831913,0.7,133.25,133.22,0.7]
[1765676832512,11.5896816,133.25,133.21,64.58458536]
[1765676832836,19.8096816,133.25,133.21,61.2]
[1765676833027,0.7,133.24,133.21,61.2]
[1765676833210,0.7,133.24,133.21,61.9]
[1765676833410,4.08458536,133.24,133.21,0.7]
[1765676833834,0.7,133.24,133.21,0.7]
[1765676835038,8.20567749,133.24,133.21,0.7]
[1765676835243,0.7,133.23,133.21,0.7]
[1765676837643,8.20567749,133.24,133.21,0.7]
[1765676841331,11.60458536,133.25,133.22,3.38458536]
[1765676841332,15.72493941,133.25,133.22,3.38458536]
[1765676841531,16.42493941,133.25,133.22,3.38458536]
[1765676841732,16.42493941,133.25,133.23,0.7]
[1765676842256,8.22,133.25,133.23,0.7]
[1765676843844,8.20418703,133.26,133.23,0.7]
[1765676852357,7.50418703,133.26,133.23,0.7]
[1765676853458,0.68,133.28,133.24,2.16401845]
[1765676853654,0.68,133.28,133.25,2.87401845]
[1765676854276,0.68,133.28,133.26,0.71]
[1765676854664,8.18323843,133.28,133.26,0.71]
[1765676854887,7.50323843,133.28,133.26,0.71]
[1765676856364,8.18323843,133.28,133.26,0.71]
[1765676856676,8.18323843,133.28,133.26,2.87401845]
[1765676856890,16.40263713,133.29,133.26,2.87401845]
[1765676857380,16.40263713,133.29,133.27,0.71]
[1765676859802,16.40263713,133.29,133.24,7.50525367]
[1765676860100,16.40263713,133.29,133.26,2.87401845]
[1765676862876,16.40263713,133.29,133.26,0.71]
[1765676863081,8.18300946,133.28,133.26,0.71]
[1765676864497,0.68,133.27,133.24,71.5792659]
[1765676866004,8.18380555,133.27,133.24,61.2]
[1765676866511,0.68,133.26,133.24,61.2]
[1765676868717,8.18414712,133.26,133.22,71.58006899]
[1765676868918,8.18414712,133.26,133.23,0.71]
[1765676869118,0.68,133.25,133.23,0.71]
[1765676869496,7.50414712,133.26,133.23,10.37972495]
[1765676869698,8.18414712,133.26,133.23,10.37972495]
[1765676869898,7.50414712,133.26,133.23,10.37972495]
[1765676870110,0.68,133.25,133.23,10.37972495]
[1765676871095,0.68,133.25,133.23,8.2157065]
[1765676871430,0.68,133.25,133.23,10.37972495]
[1765676873137,0.68,133.25,133.23,8.2157065]
[1765676873339,0.68,133.25,133.23,10.37972495]
[1765676874147,7.50356419,133.27,133.23,10.37972495]
[1765676874319,0.68,133.26,133.23,10.37972495]
[1765676876439,0.68,133.26,133.23,9.66972495]
[1765676876646,0.68,133.26,133.24,0.72]
[1765676877547,0.68,133.26,133.23,10.38972495]
[1765676878148,0.68,133.26,133.24,0.72]
[1765676879520,7.50356419,133.27,133.24,0.72]
[1765676879942,8.19356419,133.27,133.24,0.72]
[1765676880156,0.69,133.26,133.24,0.72]
[1765676880521,8.19356419,133.27,133.24,2.88401845]
[1765676880737,0.69,133.26,133.24,2.88401845]
[1765676881048,8.19312563,133.28,133.25,0.72]
[1765676881254,50.10853146,133.3,133.26,2.16401845]
[1765676881255,9.78426806,133.29,133.26,2.16401845]
[1765676881751,9.78426806,133.29,133.26,2.88401845]
[1765676882249,17.28670635,133.29,133.26,2.88401845]
[1765676887543,17.28670635,133.29,133.26,2.88281485]
[1765676887745,17.28670635,133.29,133.26,0.72]
[1765676888969,7.50243829,133.29,133.27,2.16281485]
[1765676889164,8.19243829,133.29,133.26,2.88281485]
[1765676889758,0.69,133.28,133.26,2.88281485]
[1765676890265,0.69,133.29,133.26,2.88281485]
[1765676892379,8.19267096,133.29,133.26,2.88281485]
[1765676898982,8.19267096,133.29,133.26,2.16281485]
[1765676899161,8.19267096,133.29,133.27,0.72]
[1765676899359,7.50267096,133.29,133.27,0.72]
[1765676899587,8.19267096,133.29,133.27,0.72]
[1765676901457,8.19267096,133.29,133.26,2.88281485]
[1765676902396,8.19267096,133.29,133.26,0.72]
[1765676902561,8.19267096,133.29,133.26,2.88281485]
[1765676903885,8.19267096,133.29,133.26,4.09948023]
[1765676905464,7.50187546,133.3,133.27,4.06948023]
[1765676905879,7.50187546,133.3,133.28,0.69]
[1765676906879,0.69,133.29,133.27,3.37948023]
[1765676907087,0.69,133.29,133.27,0.69]
[1765676907458,7.50187546,133.3,133.27,0.69]
[1765676907760,8.19187546,133.3,133.27,0.69]
[1765676909589,8.19187546,133.3,133.27,4.06948023]
[1765676909984,8.19187546,133.3,133.28,0.69]
[1765676913398,8.19187546,133.3,133.27,4.06948023]
[1765676913788,8.19187546,133.3,133.27,3.37948023]
[1765676913978,8.19187546,133.3,133.28,0.69]
[1765676914589,0.69,133.29,133.26,0.69]
[1765676914893,12.28948023,133.29,133.25,61.2]
[1765676915069,12.28948023,133.29,133.24,4.06948023]
[1765676915269,0.69,133.28,133.24,4.06948023]
[1765676916567,7.50356419,133.27,133.24,4.06948023]
[1765676917479,8.19356419,133.27,133.24,4.06948023]
[1765676917676,7.50356419,133.27,133.24,4.06948023]
[1765676917878,8.19356419,133.27,133.24,4.06948023]
[1765676920697,8.19356419,133.27,133.25,0.69]
[1765676922307,0.69,133.26,133.23,69.39576905]
[1765676922490,0.69,133.26,133.24,0.69]
[1765676924414,0.69,133.26,133.24,4.07086152]
[1765676926501,16.59726926,133.28,133.24,3.38086152]
[1765676926703,0.69,133.27,133.25,0.69]
[1765676927326,0.69,133.27,133.24,3.38086152]
[1765676927808,0.69,133.27,133.25,0.69]
[1765676928103,8.19379557,133.27,133.24,3.38086152]
[1765676928406,8.19379557,133.27,133.24,4.07086152]
[1765676931505,8.19379557,133.27,133.24,3.38086152]
[1765676931707,8.19379557,133.27,133.25,0.69]
[1765676931903,8.19321353,133.28,133.25,4.07086152]
[1765676932287,8.19321353,133.28,133.26,0.69]
[1765676933384,8.19321353,133.28,133.25,0.69]
[1765676939897,8.19321353,133.28,133.25,4.07086152]
[1765676940098,8.19321353,133.28,133.26,0.66]
[1765676940810,7.50321353,133.28,133.26,0.66]
[1765676941120,7.50321353,133.28,133.26,4.04086152]
[1765676942527,7.50321353,133.28,133.26,0.66]
[1765676942825,7.50321353,133.28,133.26,4.04086152]
[1765676943429,8.21321353,133.28,133.26,4.04086152]
[1765676943636,15.72268994,133.29,133.27,0.66]
[1765676943999,16.43268994,133.29,133.27,0.66]
[1765676945622,0.71,133.28,133.25,4.04086152]
[1765676945823,0.71,133.28,133.26,0.66]
[1765676946024,0.71,133.28,133.25,4.04086152]
[1765676946230,0.71,133.28,133.25,3.38086152]
[1765676946527,0.71,133.28,133.26,0.66]
[1765676954561,8.21316131,133.28,133.26,0.66]
[1765676954837,7.50316131,133.28,133.26,0.66]
[1765676957340,8.21316131,133.28,133.26,0.66]
[1765676959446,0.71,133.27,133.24,4.04001445]
[1765676959831,0.71,133.27,133.24,3.38001445]
[1765676960130,0.71,133.27,133.25,0.66]
[1765676960751,8.21383073,133.27,133.25,0.66]
[1765676962427,7.50383073,133.27,133.25,0.66]
[1765676963151,8.21383073,133.27,133.25,0.66]
[1765676963859,7.50383073,133.27,133.25,0.66]
[1765676964848,16.59746325,133.28,133.25,0.66]
[1765676965019,17.26746325,133.28,133.25,0.66]
[1765676965221,8.17319519,133.28,133.25,0.66]
[1765676971869,7.50319519,133.28,133.25,0.66]
[1765676972085,0.7,133.27,133.25,0.66]
[1765676972435,8.80994492,133.23,133.22,7.50559467]
[1765676972769,8.80994492,133.23,133.19,0.66]
[1765676972770,32.24028973,133.23,133.19,0.66]
[1765676972984,13.0470912,133.23,133.2,9.67041895]
[1765676973166,8.22,133.24,133.21,9.67015267]
[1765676973354,17.89041895,133.24,133.22,0.66]
[1765676973559,0.7,133.25,133.22,0.66]
[1765676974077,18.59041895,133.25,133.22,0.66]
[1765676974954,2.86325361,133.24,133.2,10.33070633]
[1765676975155,29.85273129,133.24,133.2,8.16745272]
[1765676975345,0.7,133.23,133.21,0.66]
[1765676976071,8.20745272,133.23,133.21,0.66]
[1765676977671,8.20745272,133.23,133.2,8.16745272]
[1765676981382,8.20745272,133.23,133.2,7.50745272]
[1765676981560,8.20745272,133.23,133.21,0.66]
[1765676982986,0.7,133.22,133.19,61.86]
[1765676983280,15.01352451,133.23,133.2,0.66]
[1765676983450,15.71352451,133.23,133.2,0.66]
[1765676983654,15.01352451,133.23,133.2,0.66]
[1765676984387,15.01352451,133.23,133.2,2.82325361]
[1765676984562,15.01352451,133.23,133.21,0.66]
[1765676987591,16.42557717,133.24,133.21,0.66]
[1765676987766,37.35135346,133.24,133.21,0.66]
[1765676988997,36.65135346,133.24,133.21,0.66]
[1765676989283,0.7,133.23,133.21,0.66]
[1765676990590,8.20592473,133.23,133.21,0.66]
[1765676990887,0.7,133.22,133.19,8.16788182]
[1765676991086,0.7,133.22,133.2,0.66]
[1765676994093,8.20639742,133.22,133.19,61.2]
[1765676994391,8.20639742,133.22,133.19,61.86]
[1765676994782,8.20639742,133.22,133.2,0.66]
[1765677003273,7.50639742,133.22,133.2,0.66]
[1765677003779,25.37558195,133.23,133.2,0.66]
[1765677003977,8.22,133.24,133.2,10.33248081]
[1765677004182,8.16501115,133.25,133.21,2.16512531]
[1765677004409,8.16501115,133.25,133.21,2.83512531]
[1765677004708,8.16501115,133.25,133.22,0.67]
[1765677005982,10.38512531,133.26,133.22,10.34148861]
[1765677005983,15.72417396,133.26,133.22,10.34148861]
[1765677006185,43.7562843,133.27,133.23,2.16512531]
[1765677006409,30.7091931,133.27,133.24,2.16512531]
[1765677006712,8.16382054,133.27,133.24,2.83512531]
[1765677006896,8.16382054,133.27,133.25,0.67]
[1765677021138,7.50382054,133.27,133.25,0.67]
[1765677023721,8.16382054,133.27,133.25,0.67]
[1765677024040,7.5030728,133.28,133.25,10.33981454]
[1765677024443,7.5030728,133.28,133.26,0.67]
[1765677029056,0.67,133.28,133.26,0.67]
[1765677030348,8.17311373,133.28,133.25,10.8844978]
[1765677030521,8.17311373,133.28,133.25,3.37980857]
[1765677030851,7.50311373,133.28,133.25,4.05980857]
[1765677031052,8.17311373,133.28,133.25,4.05980857]
[1765677031350,8.17311373,133.28,133.26,0.68]
[1765677033351,8.17311373,133.28,133.25,3.37980857]
[1765677033534,0.67,133.27,133.25,4.05980857]
[1765677034044,7.50243829,133.29,133.25,4.05980857]
[1765677034245,0.67,133.28,133.25,4.05980857]
[1765677034746,8.17324734,133.28,133.25,4.05980857]
[1765677035126,8.17324734,133.28,133.25,3.37980857]
[1765677035342,8.17324734,133.28,133.26,0.68]
[1765677042471,8.17324734,133.28,133.25,0.68]
[1765677059854,8.17324734,133.28,133.25,4.05980857]
[1765677060168,8.17324734,133.28,133.26,0.66]
[1765677068778,7.50324734,133.28,133.26,0.66]
[1765677069576,8.22324734,133.28,133.26,0.66]
[1765677069774,7.50324734,133.28,133.26,0.66]
[1765677070173,8.22324734,133.28,133.26,0.66]
[1765677070777,7.50324734,133.28,133.26,0.66]
[1765677071272,8.22324734,133.28,133.26,0.66]
[1765677072356,0.72,133.27,133.24,61.2]
[1765677072681,4.10013503,133.27,133.24,61.2]
[1765677072980,3.38013503,133.26,133.24,61.2]
[1765677073186,4.10013503,133.26,133.24,61.2]
[1765677073485,0.72,133.25,133.22,0.66]
[1765677074183,8.22489494,133.25,133.22,0.66]
[1765677074363,3.38013503,133.24,133.21,0.66]
[1765677074571,4.10013503,133.24,133.21,0.66]
[1765677074755,3.38013503,133.24,133.21,0.66]
[1765677074959,3.38013503,133.24,133.2,10.88743604]
[1765677074960,0.72,133.23,133.2,0.66]
[1765677080090,8.22587811,133.23,133.2,0.66]
[1765677080684,0.72,133.22,133.19,12.26013503]
[1765677081266,8.22640261,133.22,133.19,11.60013503]
[1765677081468,8.22640261,133.22,133.2,0.66]
[1765677082388,7.50640261,133.22,133.19,3.38013503]
[1765677082691,0.72,133.21,133.19,4.04013503]
[1765677082985,7.50640261,133.22,133.19,0.66]
[1765677083185,7.50640261,133.22,133.18,32.15564662]
[1765677083390,7.50640261,133.22,133.2,0.66]
[1765677088293,8.19604953,133.23,133.2,0.66]
[1765677088516,7.50476828,133.25,133.21,2.16502271]
[1765677088806,37.68141723,133.26,133.22,2.16502271]
[1765677088977,37.68141723,133.26,133.23,0.72]
[1765677089571,18.57934874,133.26,133.23,0.72]
[1765677089884,0.69,133.25,133.23,0.72]
[1765677090398,0.69,133.25,133.21,9.67160831]
[1765677090569,0.69,133.25,133.22,0.72]
[1765677091613,8.19481294,133.25,133.22,0.72]
[1765677092307,0.69,133.24,133.22,0.72]
[1765677092606,2.85502271,133.24,133.2,69.42731329]
[1765677092774,2.85502271,133.24,133.21,0.72]
[1765677092980,0.69,133.23,133.21,0.72]
[1765677094287,8.19610984,133.23,133.19,71.59299053]
[1765677094785,8.19610984,133.23,133.2,0.72]
[1765677094786,0.69,133.22,133.2,0.72]
[1765677100709,0.69,133.22,133.19,9.67310004]
[1765677100710,8.19646874,133.22,133.18,92.14069661]
[1765677101095,0.69,133.21,133.19,0.72]
[1765677101409,8.19646874,133.22,133.19,0.72]
[1765677102916,15.72599043,133.23,133.19,10.39313771]
[1765677103388,15.72599043,133.23,133.2,0.72]
[1765677103589,16.41599043,133.23,133.2,0.72]
[1765677105316,8.19599043,133.23,133.2,0.72]
[1765677109309,7.50599043,133.23,133.2,0.72]
[1765677109512,0.69,133.22,133.2,0.72]
[1765677110914,8.1964405,133.22,133.18,84.63222342]
[1765677111216,10.36157272,133.22,133.18,83.1870912]
[1765677111395,0.69,133.21,133.18,83.1870912]
[1765677111594,0.69,133.21,133.19,0.72]
[1765677113618,8.19705679,133.21,133.18,15.7285662]
[1765677113818,8.19705679,133.21,133.18,16.4485662]
[1765677113997,8.19705679,133.21,133.18,8.2285662]
[1765677115202,8.19705679,133.21,133.19,0.72]
[1765677123804,0.69,133.21,133.19,0.72]
[1765677136644,8.19695173,133.21,133.19,0.72]
[1765677138357,8.19695173,133.21,133.19,2.88531213]
[1765677138657,8.21695173,133.21,133.19,2.88531213]
[1765677140553,38.98853569,133.22,133.2,0.67]
[1765677140738,16.43638384,133.22,133.2,0.67]
[1765677145528,0.71,133.21,133.19,2.16531213]
[1765677145728,0.71,133.21,133.19,2.86531213]
[1765677146854,15.72638384,133.22,133.2,0.7]
[1765677147048,16.43638384,133.22,133.2,0.7]
[1765677147453,16.43638384,133.22,133.19,2.86531213]
[1765677147853,16.43638384,133.22,133.19,0.7]
[1765677148158,0.71,133.21,133.19,4.08302013]
[1765677149153,16.43638384,133.22,133.19,4.08302013]
[1765677149962,16.43638384,133.22,133.19,3.38302013]
[1765677150163,16.43638384,133.22,133.2,0.68]
[1765677150559,16.43638384,133.22,133.19,4.06302013]
[1765677150761,23.94499932,133.22,133.19,4.06302013]
[1765677151557,0.71,133.21,133.19,4.06302013]
[1765677153460,23.23499932,133.22,133.19,3.38302013]
[1765677153672,23.94499932,133.22,133.2,0.68]
[1765677154884,23.94499932,133.22,133.19,4.06302013]
[1765677159774,23.94499932,133.22,133.19,0.68]
[1765677160276,8.21702958,133.21,133.19,0.68]
[1765677164375,8.21702958,133.21,133.19,4.06302013]
[1765677165277,8.21702958,133.21,133.19,0.68]
[1765677169976,8.21702958,133.21,133.19,4.06303072]
[1765677170173,8.22,133.22,133.2,4.06303072]
[1765677170378,15.72546962,133.24,133.21,3.38303072]
[1765677170673,7.50546962,133.24,133.22,3.38303072]
[1765677170978,8.21546962,133.24,133.22,4.06303072]
[1765677172478,22.547067,133.25,133.22,3.38303072]
[1765677172479,30.76198119,133.25,133.22,3.38303072]
[1765677172652,30.76198119,133.25,133.21,7.50691013]
[1765677172653,7.50491419,133.25,133.23,4.06303072]
[1765677172858,30.04963522,133.26,133.24,3.38303072]
[1765677173057,7.50426266,133.26,133.24,4.06303072]
[1765677173267,7.50426266,133.26,133.24,3.38303072]
[1765677173478,7.50426266,133.26,133.25,0.68]
[1765677174257,7.50426266,133.26,133.24,3.38303072]
[1765677174457,8.21426266,133.26,133.24,4.06303072]
[1765677174766,7.50426266,133.26,133.24,3.38303072]
[1765677174965,7.50365015,133.27,133.25,0.68]
[1765677175277,8.21365015,133.27,133.25,0.68]
[1765677175479,30.04515238,133.28,133.26,3.38303072]
[1765677175670,8.20316794,133.28,133.26,3.38303072]
[1765677175876,8.20316794,133.28,133.26,4.09303072]
[1765677177680,8.20316794,133.28,133.26,0.71]
[1765677179360,0.7,133.27,133.23,4.09303072]
[1765677179559,8.20517308,133.27,133.24,0.71]
[1765677179979,0.7,133.26,133.24,0.71]
[1765677181060,8.20419059,133.26,133.24,0.71]
[1765677182190,8.20419059,133.26,133.23,3.38303072]
[1765677182363,7.50419059,133.26,133.23,0.71]
[1765677182691,0.7,133.25,133.23,0.71]
[1765677182868,30.74786896,133.26,133.23,0.71]
[1765677183269,8.20419059,133.26,133.23,0.71]
[1765677186181,0.7,133.25,133.23,0.71]
[1765677186586,8.2048245,133.25,133.22,69.42]
[1765677186889,8.2048245,133.25,133.22,61.2]
[1765677187075,8.2048245,133.25,133.22,61.91]
[1765677187693,30.76537256,133.26,133.23,0.71]
[1765677187890,8.22,133.26,133.23,4.09303072]
[1765677188089,8.22,133.26,133.24,0.71]
[1765677188681,8.22,133.26,133.24,4.09303072]
[1765677188995,8.20389058,133.27,133.24,3.38303072]
[1765677189201,8.20389058,133.27,133.25,0.71]
[1765677190199,15.70928647,133.27,133.25,0.71]
[1765677190393,15.70928647,133.27,133.25,4.09303072]
[1765677192497,0.7,133.26,133.25,3.38303072]
[1765677192799,7.50389058,133.27,133.25,3.38303072]
[1765677192989,8.20389058,133.27,133.25,4.09303072]
[1765677193385,0.7,133.27,133.25,4.09303072]
[1765677193682,35.17978513,133.28,133.25,4.09303072]
[1765677194394,0.7,133.27,133.25,4.09303072]
[1765677194598,0.7,133.27,133.23,73.51303072]
[1765677194906,23.24367837,133.27,133.23,73.51303072]
[1765677195310,0.7,133.26,133.23,73.51303072]
[1765677195605,0.7,133.26,133.23,65.29303072]
[1765677197907,0.7,133.26,133.24,4.09303072]
[1765677198415,30.0477555,133.27,133.25,0.71]
[1765677198607,30.7477555,133.27,133.25,0.71]
[1765677200811,8.20407713,133.27,133.25,0.71]
[1765677202708,8.20407713,133.27,133.24,4.09303072]
[1765677203011,0.7,133.26,133.23,10.88881057]
[1765677203191,0.7,133.26,133.23,11.59881057]
[1765677204014,0.7,133.26,133.24,0.71]
[1765677205614,0.7,133.26,133.23,10.88679113]
[1765677205810,0.7,133.26,133.23,11.60679113]
[1765677205984,0.7,133.26,133.21,88.18680518]
[1765677205985,8.20420956,133.26,133.22,10.88717797]
[1765677206188,8.20420956,133.26,133.22,11.60717797]
[1765677206393,0.71,133.25,133.22,11.60717797]
[1765677209904,0.71,133.25,133.22,10.39016597]
[1765677211996,0.71,133.25,133.23,0.69]
[1765677213742,0.71,133.25,133.23,2.85399928]